Cogmind - Beta 15 @@@ ROGUE MODE // 2025.08.07 @ 16:17:22 Player: Zoe Result: Destroyed by DV-WVI(R) with Subdweller Machine Gun Performance ------------- Evolutions (0) 0 Regions Visited (2) 400 Robots Destroyed (26) 130 Value Destroyed (480) 480 Prototype IDs (0) 0 Alien Tech Used (0) 0 Bonus (0) 0 TOTAL SCORE: 1010 Bonus ------- None Cogmind --------- Core Integrity 0/250 Matter 300/300 Energy 100/100 System Corruption 0% Temperature Cool (0) Movement Walking (120) Location -10/Subcaves Parts ------- > --- POWER (1) -------- (None) > --- PROPULSION (2) --- Aluminum Leg Aluminum Leg > --- UTILITY (2) ------ Small Storage Unit Targeting Computer > --- WEAPON (2) ------- Light Assault Rifle Light Cannon > --- INVENTORY (8) ---- Ion Engine Aluminum Leg Subdweller Optics Improved Terrain Scanner Light Assault Rifle Mining Laser Mining Laser Peak State ------------ > --- POWER ------------ Ion Engine > --- PROPULSION ------- Light Treads Light Treads > --- UTILITY ---------- Small Storage Unit Improved Terrain Scanner > --- WEAPON ----------- Medium Laser Assault Rifle > --- INVENTORY -------- Ion Engine Aluminum Leg Aluminum Leg Seismic Detector Small Laser [Rating: 9] Favorites ----------- Power Ion Engine Engine Ion Engine Propulsion Light Treads Treads Light Treads Leg Aluminum Leg Utility Small Storage Unit Device Improved Terrain Scanner Storage Small Storage Unit Processor Targeting Computer Weapon Assault Rifle Energy Gun Medium Laser Ballistic Gun Assault Rifle Ballistic Cannon Light Cannon Special Weapon Mining Laser Build | -11 -10 -10 ------- Run | Yrd Mat Sub Slots Evolved . | . . . Power . | . . . Propulsion . | . . . Utility . | . . . Weapon . | . . . Parts Attached 19 | 7 10 2 Power 2 | 1 1 . Engine 2 | 1 1 . Core . | . . . Reactor . | . . . Propulsion 6 | 2 3 1 Treads 3 | 2 1 . Leg 3 | . 2 1 Wheel . | . . . Hover . | . . . Flight . | . . . Utility 4 | 2 2 . Device 2 | 1 1 . Storage 1 | 1 . . Processor 1 | . 1 . Hackware . | . . . Protection . | . . . Artifact . | . . . Weapon 7 | 2 4 1 Energy Gun 1 | 1 . . Energy Cannon . | . . . Ballistic Gun 4 | 1 2 1 Ballistic Cannon 1 | . 1 . Launcher . | . . . Special Weapon 1 | . 1 . Impact Weapon . | . . . Slashing Weapon . | . . . Piercing Weapon . | . . . Special Melee Weapon . | . . . Unidentified Prototypes . | . . . Parts Lost 5 | . 1 4 Power 1 | . . 1 Propulsion 2 | . . 2 Utility 1 | . 1 . Weapon 1 | . . 1 Highest Loss Streak 3 | . 1 3 To Critical Strikes 1 | . . 1 Average Backups 7 | 4 7 7 Power . | . 1 1 Propulsion 2 | 2 2 2 Utility 1 | . 1 1 Weapon 2 | 1 2 2 Tool/Special . | . . . Unused Backups 7 | . 4 3 Power 3 | . 2 1 Propulsion 1 | . 1 . Utility 1 | . . 1 Weapon 2 | . 1 1 Tool/Special . | . . . Average Slot Usage (%) 98 | . 98 96 Engine 13 | . 14 13 Treads 22 | . 25 13 Leg 5 | . 2 11 Device 3 | . 5 . Storage 14 | . 14 14 Processor 9 | . 7 14 Energy Gun 1 | . 2 . Ballistic Gun 18 | . 17 21 Ballistic Cannon 6 | . 7 6 Peak Build Rating 9 | 9 9 8 Average Rating 7 | 6 7 7 On Entrance 5 | . 9 8 Naked Turns . | . . . Heaviest Build 16 | 15 16 14 Greatest Support 40 | 40 40 40 Greatest Overweight (x) 4 | 3 4 3 Average Overweight (x) . | . . . Largest Inventory Capacity 8 | 8 8 8 Average Capacity 7 | 7 8 8 Most Carried 8 | 7 8 8 Average Carried 7 | 4 7 7 Final Capacity 8 | 8 8 8 Final Carried 8 | 6 8 7 Class Distribution -------------------- 100% | Mutant Dominant Class ---------------- Mutant | -10/Materials Mutant | -10/Subcaves Resources | -11 -10 -10 ----------- Run | Yrd Mat Sub Matter Collected 778 | 300 406 72 Remotely . | . . . Salvage Created 677 | 180 419 78 Parts 47 | 15 29 3 Haulers Intercepted 1 | . 1 . Recyclers Shooed . | . . . Parts Field Recycled . | . . . Retrieved Matter . | . . . Parts Self-Destructed 3 | . . 3 Prevented . | . . . Kills | -11 -10 -10 ------- Run | Yrd Mat Sub Combat Hostiles Destroyed 18 | . 16 2 Guns 10 | . 8 2 Cannons 8 | . 8 . Classes Destroyed 7 | 2 4 1 Tunneler 5 | 5 . . Hauler 1 | . 1 . Recycler 1 | 1 . . Watcher 1 | . 1 . Swarmer 9 | . 9 . Grunt 7 | . 7 . Subdweller 2 | . . 2 Best Kill Streak 4 | 2 4 2 Combat Bots Only 4 | . 4 2 Max Kills in Single Turn 2 | 2 1 1 Gunslinging . | . . . Exploded . | . . . Melee . | . . . Uniques/NPCs Destroyed . | . . . Combat | -11 -10 -10 -------- Run | Yrd Mat Sub Hostile Shots Fired 125 | . 81 44 Missed 36 | . 20 16 Hits 89 | . 61 28 Projectile 89 | . 61 28 Critical Strikes 2 | . . 2 Damage Taken 1322 | . 584 738 Core 253 | . 61 192 Absorbed by Shields . | . . . Core Remaining (%) 100 | 100 . . Volleys Fired 87 | 10 63 14 Largest 2 | 2 2 2 Hottest 100 | 70 100 40 Shots Fired 156 | 20 111 25 Gun 111 | 20 66 25 Cannon 30 | . 30 . Launcher . | . . . Special 15 | . 15 . Kinetic 124 | 10 89 25 Thermal 32 | 10 22 . Explosive . | . . . Electromagnetic . | . . . Robot Hit Streak 15 | 5 14 15 Robot Miss Streak 4 | 3 4 1 Penetration Max . | . . . Secondary Targets 2 | . 2 . Max Gunslinging Chain 1 | . 1 . Shots Hit Robots 96 | 13 59 24 Core Hits 40 | 7 25 8 Critical Kills . | . . . Critical Parts Destroyed 1 | . . 1 Critical Strikes 2 | 1 . 1 Burn 1 | 1 . . Destroy 1 | . . 1 Melee Attacks . | . . . Impact . | . . . Slashing . | . . . Piercing . | . . . Sneak Attacks . | . . . Combat Hostiles . | . . . Follow-up Attacks . | . . . Damage Inflicted 1178 | 163 815 200 Guns 801 | 163 438 200 Cannons 377 | . 377 . Explosions . | . . . Melee . | . . . Ramming . | . . . Kinetic 1079 | 90 789 200 Thermal 99 | 73 26 . Explosive . | . . . Electromagnetic . | . . . Impact . | . . . Slashing . | . . . Piercing . | . . . Highest Corruption . | . . . Average Corruption . | . . . Corruption Purged . | . . . Corruption Blocked . | . . . Overload Shots . | . . . Overflow Damage . | . . . Projectiles . | . . . Explosions . | . . . Melee . | . . . Knockbacks 5 | . 5 . Impact . | . . . Kinetic 5 | . 5 . Secondary . | . . . Self-Inflicted Damage . | . . . Shots . | . . . Rammed . | . . . Targets Rammed . | . . . Kicked . | . . . Crushed . | . . . Highest Temperature 64 | 18 64 . Average Temperature 19 | 9 22 . Received Heat Transfer 249 | . 189 60 Siege Activations . | . . . Martial Activations . | . . . Shielding Activations . | . . . Robots Disrupted . | . . . Combat Hostiles . | . . . Robots Corrupted . | . . . Combat Hostiles . | . . . Parts Fried . | . . . Impact Corruptions . | . . . Robots Melted . | . . . Combat Hostiles . | . . . Parts Melted 1 | 1 . . Heat Transferred 370 | 296 74 . Parts Sabotaged . | . . . Parts Stolen . | . . . Parts Stripped . | . . . Power Chain Reactions . | . . . Alert | -11 -10 -10 ------- Run | Yrd Mat Sub Maximum Alert Level . | . . . Low Security (%) 100 | 100 100 . Level 1 . | . . . Level 2 . | . . . Level 3 . | . . . Level 4 . | . . . Level 5 . | . . . High Security . | . . . Max Security . | . . . Peak Influence 166 | 10 166 . Initial . | . . . Average 62 | 2 74 . Influence Increases 467 | 30 437 . Destroy 0b10 Robot/C 320 | . 320 . Destroy 0b10 Robot/NC 40 | 30 10 . Destroy Leader 54 | . 54 . Successful Hack 9 | . 9 . Destroy Structure 14 | . 14 . Lose Combat Pursuer 30 | . 30 . Influence Decreases 467 | 30 387 50 Entered New Map 25 | . . 25 Time Decay 432 | 30 377 25 Lost Part 10 | . 10 . Squads Dispatched 1 | . 1 . Investigation 1 | . 1 . Extermination . | . . . Reinforcement . | . . . Assault . | . . . Garrison . | . . . Intercept . | . . . Searches Triggered . | . . . Construction Impeded . | . . . Haulers Reinforced . | . . . Active Scanning Responses . | . . . Cargo Convoy Interrupts . | . . . Stealth | -11 -10 -10 --------- Run | Yrd Mat Sub Distress Signals 4 | . 4 . Communications Jammed . | . . . Distress Signals . | . . . Times Spotted 31 | . 26 5 Peak Tracking Total 5 | . 5 3 Tactical Retreats 2 | . 2 . Traps | -11 -10 -10 ------- Run | Yrd Mat Sub Traps Triggered 4 | . . 4 Indirectly . | . . . Trap Hack Attempts . | . . . Triggered . | . . . Disarmed . | . . . Reprogrammed . | . . . Reused . | . . . Traps Extracted . | . . . Installed . | . . . Triggered . | . . . Machines | -11 -10 -10 ---------- Run | Yrd Mat Sub Machines Disabled . | . . . Max in Single Turn . | . . . Machines Repaired . | . . . Machines Dismantled . | . . . Machines Sabotaged . | . . . Overloaded Fab Kills . | . . . Hacking | -11 -10 -10 --------- Run | Yrd Mat Sub Machines Accessed 4 | . 4 . Terminals 3 | . 3 . Fabricators . | . . . Repair Stations . | . . . Recycling Units 1 | . 1 . Scanalyzers . | . . . Garrison Access . | . . . Total Hacks 11 | . 11 . Successful 6 | . 6 . Failed 5 | . 5 . Catastrophic 1 | . 1 . Database Lockouts . | . . . Manual 11 | . 11 . Terminals 10 | . 10 . Fabricators . | . . . Repair Stations . | . . . Recycling Units 1 | . 1 . Scanalyzers . | . . . Garrison Access . | . . . Terminal Hacks 1 | . 1 . Terminal Index 1 | . 1 . Fabricator Hacks . | . . . Repair Station Hacks . | . . . Recycling Unit Hacks . | . . . Scanalyzer . | . . . Garrison Access Hacks . | . . . Unauthorized Hacks 5 | . 5 . Terminals 4 | . 4 . Track 1 | . 1 . Botnet 3 | . 3 . Fabricators . | . . . Repair Stations . | . . . Recycling Units 1 | . 1 . Reject 1 | . 1 . Scanalyzers . | . . . Garrison Access . | . . . Data Cores Recovered . | . . . Used . | . . . Hacking Detections 4 | . 4 . Full Trace Events 3 | . 3 . Feedback Events . | . . . Feedback Blocked . | . . . Robot Schematics Acquired . | . . . Robots Built . | . . . Authchips . | . . . Time . | . . . Total Robot Build Rating . | . . . Part Schematics Acquired . | . . . Parts Built . | . . . Authchips . | . . . Time . | . . . Total Part Build Rating . | . . . Parts Repaired . | . . . Time . | . . . Parts Recycled . | . . . Recycled Matter . | . . . Retrieved Matter . | . . . Retrieved Components . | . . . Parts Scanalyzed . | . . . Part Schematics Acquired . | . . . Parts Damaged . | . . . Bothacking | -11 -10 -10 ------------ Run | Yrd Mat Sub Used RIF Installer . | . . . Robots Hacked . | . . . Non-combat . | . . . Combat . | . . . Robot Hacks Applied . | . . . Relay Couplers Released . | . . . Fabnet Peak Effective % . | . . . Robots Rewired . | . . . Allies Hacked . | . . . Hacks Repelled . | . . . Allies | -11 -10 -10 -------- Run | Yrd Mat Sub Total Allies . | . . . Largest Group . | . . . Highest-Rated Group . | . . . Highest-Rated Ally . | . . . Total Orders . | . . . Ally Attacks . | . . . Total Damage . | . . . Kills . | . . . Allies Corrupted . | . . . Allies Melted . | . . . Intel | -11 -10 -10 ------- Run | Yrd Mat Sub Active Infowar (turns) 481 | 83 398 . Terrain 255 | 83 172 . Seismic 226 | . 226 . Robot Analysis Total . | . . . Derelict Logs Recovered . | . . . Drone Launches . | . . . Drone Recoveries . | . . . Exploration | -11 -10 -10 ------------- Run | Yrd Mat Sub Turns Passed 1633 | 202 1065 366 Spaces Moved 766 | 96 444 226 Core 66 | 20 38 8 Treads 492 | 76 328 88 Legs 208 | . 78 130 Wheels . | . . . Hover . | . . . Flight . | . . . Fastest Speed 50 | 50 120 120 Average Speed 154 | 160 160 138 Slowest Speed 250 | 200 250 200 Overloaded Moves . | . . . Propulsion Burnouts . | . . . Robots Hopped . | . . . Potential Cave-ins . | . . . Cave-ins Triggered . | . . . Exploration Rate (%) 24 | 5 43 25 Regions Visited 2 Branch Regions 1 Pre-discovered Areas . | . . . Known Exits Taken . | . . . Unknown Exits Taken 2 | 1 1 . Scrap Searched . | . . . Spaces Dug 14 | . 14 . Terrain Destroyed 14 | . 14 . Melee . | . . . Projectile 14 | . 14 . AOE . | . . . Terrain Rammed . | . . . Walls Destroyed . | . . . Machines Disabled . | . . . Actions | -11 -10 -10 --------- Run | Yrd Mat Sub Total 1036 | 125 659 252 Wait 124 | . 118 6 Move 764 | 95 443 226 Hop . | . . . Pick Up 26 | 13 11 2 Fast Attach . | . . . Attach 11 | 7 1 3 Detach . | . . . Swap 15 | . 14 1 Drop 9 | . 9 . Fire 87 | 10 63 14 Melee . | . . . Ram . | . . . Kick . | . . . Crush . | . . . Escape Stasis . | . . . Rewire . | . . . Trap . | . . . Miscellaneous . | . . . Route ------- -11/Scrapyard -10/Materials (discovered 2 exits: [*Mat] / [*Sub]) -10/Subcaves History --------- Turn | Location | Event 11 | -11/Scrapyard | Discovered new exit (range 15) 203 | -11/Scrapyard | Entered Materials 324 | -10/Materials | Build established: Mutant 1244 | -10/Materials | Discovered new exit (range 4) 1260 | -10/Materials | Discovered new exit (range 6) 1268 | -10/Materials | Entered Subcaves 1433 | -10/Subcaves | Core integrity fell below 50% 1463 | -10/Subcaves | Lost 3 parts (2n1w) 1572 | -10/Subcaves | Core integrity fell below 20% 1634 | -10/Subcaves | Destroyed by DV-WVI(R) with Subdweller Machine Gun Last Messages --------------- 01481_ Subatomizers dissect the Disposable Heat Sink. 01533_ Subatomizers dissect the Disposable Heat Sink, destroying it. 01566_ Triggered Piercing Trap. 01566_ Spikes shoot up from the floor. 01566_ Critical hit (Impale). 01569_ Triggered Piercing Trap. 01569_ Spikes shoot up from the floor. 01571_ Triggered Piercing Trap. 01571_ Spikes shoot up from the floor. 01571_ Critical hit (Impale). 01573_ Triggered Piercing Trap. 01573_ Spikes shoot up from the floor. 01573_ Critical hit (Impale). 01593_ Subatomizers dissect the Lgt. Ion Engine. 01626_ Ion Engine destroyed. 01628_ Subatomizers dissect the Sub. Laser. 01631_ N7-51M(R): "SUBMAD!" Map ----- +----------------------------------------------------+ | ???????# #????# ### # # #### #? | | #??????### ##????# ##?########?## #? | | ##???????### ##?????# #?????????## ##? | | ##????????# ##????? #????????# #?? | | ####?????# #???? #????????# #?? | | ####### ##??? ### ## #????????### ##?? | | ## #??? ???# ## #?????????## ##?? | | ####### #????????## ## ##?????????# #?? | | ??????# ##?????????# #??## ?????????## ##?? | | #####?# ####??? #? ### ????##### #?? | | ## ### ##?# # ???## ## ##? | | ## #? #??? ?### #? | | #??????# ## #? | | #### ##?????# "* #? | | ## ######??? #??#### % #### #? | | ?# ##????????# ##?# #??## ##? | | #????????## #?## ##???# #?? | | #???????## ##?#### ""#????####?? | | ## ??????# #????# #?????????? | | ### ? ### ! #????## ##?????????? | | #?# !%!#?????## #?????????? | | #?## ??? [ ####### #?????????? | | ??#### ??????? # # #?????????? | | ?????? ##??????????# #?????????? | | ?????? ####???????????## R #?????????? | | #??????##???????????## ##@ # ### ##?????????? | | ???????????????????## ###?# #?????????? | | ???????????????????# ##??## #?????????? | | ???????????? # #?## #?????????? | | ???????????? ## ### #?????????? | | ???????????? ###### ### ##????????? | | ????????????? ##### #????## ### ##???????? | | ???????????? ??????###?????# R## #???????? | | ???????????????????????????# ## #???????? | | ???????????????????????????## #???????? | | ?????????????????????????# #???????? | | ????????????????????????# ##???????? | | ????????????????????????## #####????????? | | ?????????????????????????## ##????????????? | | ??????????????????????????## ####?????????????? | | ???????????????????????????######????????????????? | | ?????????????????????????????????????????????????? | | ?????????????????????????????????????????????????? | | ?????????????????????????????????????????????????? | | ?????????????????????????????????????????????????? | | ?????????????????????????????????????????????????? | | ?????????????????????????????????????????????????? | | ?????????????????????????????????????????????????? | | ?????????????????????????????????????????????????? | | ?????????????????????????????????????????????????? | +----------------------------------------------------+ Best States ------------- Heat Dissipation 25 Energy Generation 10 Energy Capacity 250 Matter Stores 300 Matter Capacity 300 Sight Range 16 Terrain Scan Range 16 Terrain Scan Density 10 Evasion (%) 55 Targeting Accuracy 5 Recoil Reduction 2 Item Schematics ----------------- None Robot Schematics ------------------ None Fabricated ------------ Nothing Repaired ---------- Nothing Alien Tech Used ----------------- None Achievements -------------- None Challenges ------------ None Game ------ Seed CarbideAbsorptionExtractor Manual? 0 Play Time 00:15:47 Cumulative 31.6 hours Start 2025.08.07 @ 16:03:59 End 2025.08.07 @ 16:17:22 Sessions 1 Manual Loads 0 Difficulty Rogue Special Mode None Game No. 64 Rogue 61 Adventurer 3 Explorer 0 Win Type - Total 0 Types 0/0/0/0/0/0/0/0/0/0 Lore% 26 Gallery% 23 Achievement% 25 Wizard Run 0 Options --------- Layout 1 ASCII 0 Keyboard 0 Movement Mouse Keybinds 0 Fullscreen 1 Font 24/Smallcaps Map View 50x35 Zoom Use 0% Tactical HUD 1 Map Filters NONE Filters NONE Steam 1 RUN: 84e0d0cc-c561-4040-a951-dd86d32f07ce